{"text_format":"1","workbook":"xlsx","n_sheets":5,"sheets":["基本情報","雛形1","雛形2","雛形3","選択肢"],"not_rendered":{"charts":0,"images":0,"macros":1,"external_links":3,"defined_names":16,"comments":3,"pivot_tables":0},"unopened":[],"bounds":{"document_bytes":16777216,"sheet_cells":100000,"rows_first":2000,"rows_last":500,"rows_between":2000,"halvings":0,"cell_chars":16384,"cell_head_chars":4096},"cells_cut":0,"cells_raw":0,"read":"whole","date_system":"1900"}

{"sheet":"基本情報","index":0,"n_rows":63,"n_cols":6,"rows_kept":63,"cut":false,"hidden":false,"merged":[]}
["特許出願支援に関する精算請求書　　基本情報"]
["■請求機関の情報",null,null,"■請求履歴"]
["機関名",null,null,"請求回数","請求日","様式追加対象"]
["部署名",null,null,1]
["請求者氏名(契約代表者)",null,null,2]
["機関所在地",null,null,3]
[null,null,null,4]
["■発明の情報",null,null,5]
["出願別整理番号",null,null,6]
["発明の名称",null,null,7]
["出願人",null,null,8]
["請求機関の費用負担割合",null,null,9]
[null,null,null,10]
["■銀行の情報",null,null,11]
["振込銀行名",null,null,12]
["支店名",null,null,13]
["銀行コード",null,null,14]
["支店コード",null,null,15]
["口座名",null,null,16]
["口座名ふりがな",null,null,17]
["預金口座　(7桁で記入)",null,null,18]
[null,null,null,19]
["■請求担当者の情報",null,null,20]
["担当者氏名",null,null,21]
["担当者ふりがな",null,null,22]
["連絡先(TEL)",null,null,23]
["連絡先(FAX)",null,null,24]
["連絡先(E-mail)",null,null,25]
[null,null,null,26]
["■権利化の進展状況","(※各項目が確定したら、順次入力して下さい。)",null,27]
["出願日(各国移行日)",null,null,28]
["出願番号",null,null,29]
["審査請求日",null,null,30]
["特許登録日",null,null,31]
["特許登録番号",null,null,32]
["拒絶査定/特許査定日",null,null,33]
["特許事務所(日本）",null,null,34]
[null,null,null,35]
[null,null,null,36]
[null,null,null,37]
[null,null,null,38]
[null,null,null,39]
[null,null,null,40]
[null,null,null,41]
[null,null,null,42]
[null,null,null,43]
[null,null,null,44]
[null,null,null,45]
[null,null,null,46]
[null,null,null,47]
[null,null,null,48]
[null,null,null,49]
[null,null,null,50]
[null,null,null,51]
[null,null,null,52]
[null,null,null,53]
[null,null,null,54]
[null,null,null,55]
[null,null,null,56]
[null,null,null,57]
[null,null,null,58]
[null,null,null,59]
[null,null,null,60]

{"sheet":"雛形1","index":1,"n_rows":33,"n_cols":7,"rows_kept":33,"cut":false,"hidden":true,"merged":[[10,1,10,6],[9,1,9,5],[18,1,18,5],[15,1,15,6],[2,5,2,6],[3,5,3,6],[6,1,6,6],[7,1,7,6],[8,1,8,6],[32,0,34,0],[32,1,34,6],[24,2,24,4],[13,1,13,6],[12,1,12,6],[29,1,29,6],[30,1,30,6],[26,1,26,6],[28,1,28,6],[27,1,27,6],[23,1,23,6],[14,1,14,6],[20,1,20,4],[21,1,21,4],[22,1,22,6],[19,1,19,5]]}
["（様式１）",null,null,null,null,null,"220401"]
["国立研究開発法人科学技術振興機構　殿"]
[null,null,null,null,null,"JST使用欄(管理番号)"]
[null,"特許出願支援に関する精算請求書"]
[]
[]
["請求日"]
["機関名"]
["部署名"]
["請求者氏名\n(契約代表者)"]
["機関所在地"]
[]
["出願別整理番号"]
["申請書に記載の\n発明の名称"]
["出願人"]
["支援割合"]
[]
["以下のとおり請求いたします。"]
["支援対象費用合計",null,null,null,null,null,"（内訳別紙）"]
[" うちJSTへの請求額"]
["振込銀行名",null,null,null,null,"銀行コード"]
["支店名",null,null,null,null,"支店コード"]
["口座名"]
["ふりがな"]
["預金口座","普通　No",null,null,null,null,"(７桁でご記入ください)"]
[]
["ふりがな"]
["担当者氏名"]
["連絡先(TEL)"]
["連絡先(FAX)"]
["連絡先(E-mail)"]
[]
["備考欄"]

{"sheet":"雛形2","index":2,"n_rows":34,"n_cols":8,"rows_kept":34,"cut":false,"hidden":true,"merged":[[32,0,32,3],[32,4,32,6],[24,1,24,2],[25,1,25,2],[31,4,31,6],[26,1,26,2],[27,1,27,2],[28,1,28,2],[29,1,29,2],[31,0,31,3],[30,0,30,3],[4,5,4,6],[5,0,5,1],[5,2,5,3],[5,5,5,6],[14,1,14,2],[7,5,7,6],[10,2,10,3],[11,2,11,3],[10,5,10,6],[4,0,4,1],[4,2,4,3],[11,5,11,6],[12,5,12,6],[22,1,22,2],[23,1,23,2],[7,0,7,1],[19,1,19,2],[15,1,15,2],[7,2,7,3],[21,1,21,2],[12,2,12,3],[11,0,11,1],[18,1,18,2],[12,0,12,1],[10,0,10,1],[16,1,16,2],[17,1,17,2],[20,1,20,2]]}
["（様式２）特許出願支援に関する精算請求書[科目内訳] (単位：円)",null,null,null,null,null,220401]
[]
[]
[]
["出願別整理番号",null,null,null,"請求日"]
[null,null,null,null,"請求回数"]
[]
["請求の種類",null,null,null,"特許事務所名"]
[]
["権利化進展情報  ※確定していない日付けは、「1900年1月0日」のままで構いません。"]
["出願日(各国移行日)",null,null,null,"請求項数"]
["審査請求日",null,null,null,"出願番号"]
["登録日（特許査定日）",null,null,null,"特許登録番号"]
[]
["No","費目（選択）",null,"科目\n（特許事務所請求書）","手数料\n(消費税有)","立替金\n(消費税無)","備考\n(特許事務所請求書No等)","費目IDの設定"]
[1,null,null,null,null,null,null,{"$f":"IF(ISERROR(VLOOKUP($B16,選択肢!$H$2:$I$75,2,0)),\"\",VLOOKUP($B16,選択肢!$H$2:$I$76,2,0))","v":""}]
[2,null,null,null,null,null,null,{"$f":"IF(ISERROR(VLOOKUP($B17,選択肢!$H$2:$I$75,2,0)),\"\",VLOOKUP($B17,選択肢!$H$2:$I$76,2,0))","v":""}]
[3,null,null,null,null,null,null,{"$f":"IF(ISERROR(VLOOKUP($B18,選択肢!$H$2:$I$75,2,0)),\"\",VLOOKUP($B18,選択肢!$H$2:$I$76,2,0))","v":""}]
[4,null,null,null,null,null,null,{"$f":"IF(ISERROR(VLOOKUP($B19,選択肢!$H$2:$I$75,2,0)),\"\",VLOOKUP($B19,選択肢!$H$2:$I$76,2,0))","v":""}]
[5,null,null,null,null,null,null,{"$f":"IF(ISERROR(VLOOKUP($B20,選択肢!$H$2:$I$75,2,0)),\"\",VLOOKUP($B20,選択肢!$H$2:$I$76,2,0))","v":""}]
[6,null,null,null,null,null,null,{"$f":"IF(ISERROR(VLOOKUP($B21,選択肢!$H$2:$I$75,2,0)),\"\",VLOOKUP($B21,選択肢!$H$2:$I$76,2,0))","v":""}]
[7,null,null,null,null,null,null,{"$f":"IF(ISERROR(VLOOKUP($B22,選択肢!$H$2:$I$75,2,0)),\"\",VLOOKUP($B22,選択肢!$H$2:$I$76,2,0))","v":""}]
[8,null,null,null,null,null,null,{"$f":"IF(ISERROR(VLOOKUP($B23,選択肢!$H$2:$I$75,2,0)),\"\",VLOOKUP($B23,選択肢!$H$2:$I$76,2,0))","v":""}]
[9,null,null,null,null,null,null,{"$f":"IF(ISERROR(VLOOKUP($B24,選択肢!$H$2:$I$75,2,0)),\"\",VLOOKUP($B24,選択肢!$H$2:$I$76,2,0))","v":""}]
[10,null,null,null,null,null,null,{"$f":"IF(ISERROR(VLOOKUP($B25,選択肢!$H$2:$I$75,2,0)),\"\",VLOOKUP($B25,選択肢!$H$2:$I$76,2,0))","v":""}]
[11,null,null,null,null,null,null,{"$f":"IF(ISERROR(VLOOKUP($B26,選択肢!$H$2:$I$75,2,0)),\"\",VLOOKUP($B26,選択肢!$H$2:$I$76,2,0))","v":""}]
[12,null,null,null,null,null,null,{"$f":"IF(ISERROR(VLOOKUP($B27,選択肢!$H$2:$I$75,2,0)),\"\",VLOOKUP($B27,選択肢!$H$2:$I$76,2,0))","v":""}]
[13,null,null,null,null,null,null,{"$f":"IF(ISERROR(VLOOKUP($B28,選択肢!$H$2:$I$75,2,0)),\"\",VLOOKUP($B28,選択肢!$H$2:$I$76,2,0))","v":""}]
[14,null,null,null,null,null,null,{"$f":"IF(ISERROR(VLOOKUP($B29,選択肢!$H$2:$I$75,2,0)),\"\",VLOOKUP($B29,選択肢!$H$2:$I$76,2,0))","v":""}]
[15,null,null,null,null,null,null,{"$f":"IF(ISERROR(VLOOKUP($B30,選択肢!$H$2:$I$75,2,0)),\"\",VLOOKUP($B30,選択肢!$H$2:$I$76,2,0))","v":""}]
["小計",null,null,null,{"$f":"SUM(E16:E30)","v":0},{"$f":"SUM(F16:F30)","v":0}]
["支援対象費用合計",null,null,null,{"$f":"E31+F31","v":0}]
["JSTへの請求額",null,null,null,{"$f":"E32*0.8","v":0}]
["【JST使用欄】"]

{"sheet":"雛形3","index":3,"n_rows":20,"n_cols":7,"rows_kept":20,"cut":false,"hidden":true,"merged":[[9,2,9,5],[17,0,17,2],[3,0,3,1],[4,0,4,1],[5,0,5,1],[3,4,3,5],[4,4,4,5],[5,4,5,5]]}
["（様式３）特許出願支援に関する精算請求書[現地代理人費用計算書] (単位：円)",null,null,null,null,220401]
[]
[]
["出願別整理番号",null,null,"請求日"]
["特許事務所名",null,null,"現地代理人事務所名"]
["請求項数",null,null,"レート(数値のみ)"]
[]
[]
[]
["【現地代理人費用の内訳】",null,"現地代理人費用を特許庁費用(Official fee)と特許事務所手数料（Attoney's fee）、支援対象外費用にわけてご記入下さい。その際、費用負担(持分)を考慮した金額を入力してください。"]
["No","費目","科目","現地通貨(数値のみ)\n[持分を考慮した値]","日本円\n[持分を考慮した値]","備考"]
[1,"特許庁費用","－",null,null,"official fee",{"$f":"IF(ISERROR(VLOOKUP($B12,選択肢!$K$1:$L$4,2,FALSE)),\"\",VLOOKUP($B12,選択肢!$K$1:$L$4,2,FALSE))","v":"O1100"}]
[2,"特許事務所手数料","－",null,null,"Attorney's fee等",{"$f":"IF(ISERROR(VLOOKUP($B13,選択肢!$K$1:$L$4,2,FALSE)),\"\",VLOOKUP($B13,選択肢!$K$1:$L$4,2,FALSE))","v":"O1101"}]
[3,"分割出願に関する費用\n（対象外）",null,null,null,"Divisional application\n",{"$f":"IF(ISERROR(VLOOKUP($B14,選択肢!$M$1:$N$7,2,FALSE)),\"\",VLOOKUP($B14,選択肢!$M$1:$N$7,2,FALSE))","v":"Z0005"}]
[4,"審判請求に関する費用\n（対象外）",null,null,null,"Appeal",{"$f":"IF(ISERROR(VLOOKUP($B15,選択肢!$M$1:$N$7,2,FALSE)),\"\",VLOOKUP($B15,選択肢!$M$1:$N$7,2,FALSE))","v":"Z0005"}]
[5,"その他（対象外）",null,null,null,"Other",{"$f":"IF(ISERROR(VLOOKUP($B16,選択肢!$M$1:$N$7,2,FALSE)),\"\",VLOOKUP($B16,選択肢!$M$1:$N$7,2,FALSE))","v":"Z9999"}]
[]
["支援対象費用[ = (1+2)-3-4-5） ]",null,null,{"$f":"+D12+D13-D14-D15-D16","v":0},{"$f":"+E12+E13-E14-E15-E16","v":0}]
[]
["【JST使用欄】"]

{"sheet":"選択肢","index":4,"n_rows":76,"n_cols":15,"rows_kept":76,"cut":false,"hidden":true,"merged":[]}
["A_PCT出願に関する費用","B_国際段階に関する費用","C_指定国移行に関する費用","D_審査に関する費用","E_特許査定に関する費用","G_出願に関する費用",null,"費目名","費目ID","C_出願(移行)費用","特許庁費用","O1100","EPの追加クレーム料","Z0007","出願(移行）に関する費用"]
["調査手数料(印紙代)","予備審査請求（印紙代)","国内移行手数料(印紙代)","審査請求、管理(手数料)","特許料納付（年金)(印紙代)","出願手数料(印紙代)",null,"国際出願手数料(WIPO)","A1001","D_審査対応費用","特許事務所手数料","O1101","期間延長費用","Z0003","審査請求に関す費用"]
["送付手数料(印紙代)","取扱手数料(WIPO)","－－－－－－－－－－－－－－－","維持年金納付管理手数料","－－－－－－－－－－－－－－－","－－－－－－－－－－－－－－－",null,"調査手数料(印紙代)","A1002","F_中間費用","事務的経費","M7001","書誌的事項補正(住所、名前等の軽微な補正)","Z0004","各種指令応答に関する費用"]
["国際出願手数料(WIPO)","予備審査の追加手数料(印紙代)","審査請求、管理(手数料)","意見書、補正書作成費用","特許料納付（年金)手数料","請求項作成手数料",null,"送付手数料(印紙代)","A1003","E_特許査定","その他","Z9999","成功報酬、謝金等","Z9998","拒絶理由通知に関する費用"]
["追加調査手数料（印紙代)","追加調査手数料（印紙代)","国内移行手数料","－－－－－－－－－－－－－－－","－－－－－－－－－－－－－－－","明細書作成手数料",null,"優先権証明願(印紙代)","A1004","Z_その他",null,null,"その他（対象外）","Z9999","特許査定に関する費用"]
["－－－－－－－－－－－－－－－","文献の写しの請求費用(印紙代)","翻訳(英語：上限100万円)","現地代理人費用","現地代理人費用","図面作成手数料",null,"追加調査手数料（印紙代)","A1005",null,null,null,"分割出願に関する費用\n（対象外）","Z0005"]
["PCT出願手数料(日本語)","－－－－－－－－－－－－－－－","翻訳(英語以外：上限100万円)","現地代理人への指示（指令応答などの)手数料","現地代理人への指示（指令応答などの)手数料","要約書作成手数料",null,"オンラインによる減額","A1999",null,null,null,"審判請求に関する費用\n（対象外）","Z0005"]
["請求項作成手数料","１９条補正に関する手数料","情報開示陳述書(IDS)に関する手数料","－－－－－－－－－－－－－－－","－－－－－－－－－－－－－－－","配列表作成手数料",null,"PCT出願手数料(日本語)","A7001"]
["明細書作成手数料","３４条補正に関する手数料","－－－－－－－－－－－－－－－","翻訳(英語：上限100万円)","翻訳(英語：上限100万円)","磁気ディスク提出手数料",null,"請求項作成手数料","A7002"]
["図面作成手数料","答弁書作成手数料","請求項作成手数料","翻訳(英語以外：上限100万円)","翻訳(英語以外：上限100万円)","割増、加算等",null,"明細書作成手数料","A7003"]
["要約書作成手数料","陳述書の提出に関する手数料","明細書作成手数料","情報開示陳述書(IDS)に関する手数料","－－－－－－－－－－－－－－－","－－－－－－－－－－－－－－－",null,"図面作成手数料","A7004"]
["配列表作成手数料","国際調査報告対応費用","図面作成手数料","－－－－－－－－－－－－－－－","寄託に関する費用(実費)","現地代理人費用",null,"要約書作成手数料","A7005"]
["電子出願による手数料","国際予備審査手数料","要約書作成手数料","請求項作成手数料","寄託に関する費用(手数料)","現地代理人への指示（指令応答などの)手数料",null,"配列表作成手数料","A7006"]
["磁気ディスク提出手数料","割増、加算等","配列表作成手数料","明細書作成手数料","方式補正、手続補正、追完に関する手数料","－－－－－－－－－－－－－－－",null,"電子出願による手数料","A7007"]
["割増、加算等","－－－－－－－－－－－－－－－","割増、加算等","図面作成手数料","上申書提出手数料","翻訳(英語：上限100万円)",null,"優先権主張に関する手数料","A7008"]
["－－－－－－－－－－－－－－－","寄託に関する費用(実費)","－－－－－－－－－－－－－－－","要約書作成手数料","技術検討料","翻訳(英語以外：上限100万円)",null,"磁気ディスク提出手数料","A7010"]
["優先権証明願(印紙代)","寄託に関する費用(手数料)","現地代理人費用","配列表作成手数料","－－－－－－－－－－－－－－－","情報開示陳述書(IDS)に関する手数料",null,"請求項加算手数料","A7011"]
["優先権主張に関する手数料","方式補正、手続補正、追完に関する手数料","現地代理人への指示（指令応答などの)手数料","割増、加算等","公証、認証等（実費)","－－－－－－－－－－－－－－－",null,"明細書、図面加算手数料","A7012"]
["寄託に関する費用(実費)","上申書提出手数料","－－－－－－－－－－－－－－－","－－－－－－－－－－－－－－－","公証、認証等の事務手数料","優先権証明願(印紙代)",null,"ページ加算手数料","A7013"]
["寄託に関する費用(手数料)","技術検討料","寄託に関する費用(実費)","寄託に関する費用(実費)","－－－－－－－－－－－－－－－","優先権主張に関する手数料",null,"割増、加算等","A7014"]
["方式補正、手続補正、追完に関する手数料","－－－－－－－－－－－－－－－","寄託に関する費用(手数料)","寄託に関する費用(手数料)","印書代、タイプ代(電子化手数料)","寄託に関する費用(実費)",null,"予備審査請求（印紙代)","B1001"]
["上申書提出手数料","公証、認証等（実費)","方式補正、手続補正、追完に関する手数料","方式補正、手続補正、追完に関する手数料","書類作成、調整費用","寄託に関する費用(手数料)",null,"予備審査の追加手数料(印紙代)","B1002"]
["技術検討料","公証、認証等の事務手数料","上申書提出手数料","上申書提出手数料","事務手数料(管理料、報告料)","新規性喪失例外に関する手数料",null,"取扱手数料(WIPO)","B1003"]
["－－－－－－－－－－－－－－－","－－－－－－－－－－－－－－－","技術検討料","技術検討料","事務的経費(コピー、郵送料、通信費、振込手数料)","方式補正、手続補正、追完に関する手数料",null,"文献の写しの請求費用(印紙代)","B1004"]
["公証、認証等（実費)","印書代、タイプ代(電子化手数料)","－－－－－－－－－－－－－－－","－－－－－－－－－－－－－－－","－－－－－－－－－－－－－－－","上申書提出手数料",null,"１９条補正に関する手数料","B7001"]
["公証、認証等の事務手数料","書類作成、調整費用","公証、認証等（実費)","公証、認証等（実費)","減額、値引き、ディスカウント","技術検討料",null,"３４条補正に関する手数料","B7002"]
["－－－－－－－－－－－－－－－","電子出願による手数料","公証、認証等の事務手数料","公証、認証等の事務手数料","放棄手数料","－－－－－－－－－－－－－－－",null,"答弁書作成手数料","B7003"]
["印書代、タイプ代(電子化手数料)","事務手数料(管理料、報告料)","譲渡、宣誓書、委任状提出に関する費用","譲渡、宣誓書、委任状提出に関する費用","その他","公証、認証等（実費)",null,"国際調査報告対応費用","B7004"]
["書類作成、調整費用","事務的経費(コピー、郵送料、通信費、振込手数料)","－－－－－－－－－－－－－－－","－－－－－－－－－－－－－－－",null,"公証、認証等の事務手数料",null,"国際予備審査手数料","B7005"]
["電子出願による手数料","－－－－－－－－－－－－－－－","印書代、タイプ代(電子化手数料)","印書代、タイプ代(電子化手数料)","","譲渡、宣誓書、委任状提出に関する費用",null,"陳述書の提出に関する手数料","B7006"]
["事務手数料(管理料、報告料)","磁気ディスク提出手数料","書類作成、調整費用","書類作成、調整費用","","－－－－－－－－－－－－－－－",null,"国内移行手数料(印紙代)","C0001"]
["事務的経費(コピー、郵送料、通信費、振込手数料)","－－－－－－－－－－－－－－－","電子出願による手数料","電子出願による手数料","","印書代、タイプ代(電子化手数料)",null,"国内移行手数料","C7001"]
["－－－－－－－－－－－－－－－","減額、値引き、ディスカウント","事務手数料(管理料、報告料)","事務手数料(管理料、報告料)","","書類作成、調整費用",null,"翻訳(英語：上限100万円)","C7003"]
["減額、値引き、ディスカウント","放棄手数料","事務的経費(コピー、郵送料、通信費、振込手数料)","事務的経費(コピー、郵送料、通信費、振込手数料)",null,"電子出願による手数料",null,"翻訳(英語以外：上限100万円)","C7004"]
["放棄手数料","その他","－－－－－－－－－－－－－－－","－－－－－－－－－－－－－－－",null,"事務手数料(管理料、報告料)",null,"審査請求料(印紙代)","D1001"]
["その他",null,"減額、値引き、ディスカウント","減額、値引き、ディスカウント",null,"事務的経費(コピー、郵送料、通信費、振込手数料)",null,"維持年金納付管理手数料","D7006"]
[null,null,"放棄手数料","放棄手数料","","－－－－－－－－－－－－－－－",null,"－","D7001"]
[null,null,"その他","その他","","軽減申請手数料",null,"審査請求、管理(手数料)","D7002"]
[null,null,null,null,"","減額、値引き、ディスカウント",null,"意見書、補正書作成費用","D7003"]
[null,null,null,null,"",null,null,"請求項加算手数料","D7005"]
["",null,null,null,null,"放棄手数料",null,"特許料納付（年金)(印紙代)","E1001"]
[null,null,null,null,null,"その他",null,"特許料納付（年金)手数料","E7001"]
[null,null,null,null,null,null,null,"出願手数料(印紙代)","C0001"]
[null,null,null,null,null,null,null,"－","F7001"]
[null,null,null,null,null,null,null,"出願手数料(各国特許庁費用)","G1001"]
[null,null,null,null,null,null,null,"出願手数料","G7001"]
[null,null,null,null,null,null,null,"-","M0001"]
[null,null,null,null,null,null,null,"事務的経費(コピー、郵送料、通信費、振込手数料)","M7001"]
[null,null,null,null,null,null,null,"事務手数料(管理料、報告料)","M7002"]
[null,null,null,null,null,null,null,"印書代、タイプ代(電子化手数料)","M7007"]
[null,null,null,null,null,null,null,"電子化手数料","M7008"]
[null,null,null,null,null,null,null,"書類作成、調整費用","M7010"]
[null,null,null,null,null,null,null,"軽減申請手数料","M7011"]
[null,null,null,null,null,null,null,"新規性喪失例外に関する手数料","M7012"]
[null,null,null,null,null,null,null,"各種印紙代","O1001"]
[null,null,null,null,null,null,null,"公証、認証等（実費)","O1002"]
[null,null,null,null,null,null,null,"寄託に関する費用(実費)","O1013"]
[null,null,null,null,null,null,null,"－","O1100"]
[null,null,null,null,null,null,null,"－","O1101"]
[null,null,null,null,null,null,null,"現地代理人費用","O1102"]
[null,null,null,null,null,null,null,"－","O7001"]
[null,null,null,null,null,null,null,"上申書提出手数料","O7002"]
[null,null,null,null,null,null,null,"公証、認証等の事務手数料","O7003"]
[null,null,null,null,null,null,null,"情報開示陳述書(IDS)に関する手数料","O7004"]
[null,null,null,null,null,null,null,"譲渡、宣誓書、委任状提出に関する費用","O7006"]
[null,null,null,null,null,null,null,"－","O7007"]
[null,null,null,null,null,null,null,"技術検討料","O7008"]
[null,null,null,null,null,null,null,"方式補正、手続補正、追完に関する手数料","O7009"]
[null,null,null,null,null,null,null,"寄託に関する費用(手数料)","O7013"]
[null,null,null,null,null,null,null,"現地代理人への指示（指令応答などの)手数料","O7100"]
[null,null,null,null,null,null,null,"－－－－－－－－－－－－－－－","X9999"]
[null,null,null,null,null,null,null,"-","Z0001"]
[null,null,null,null,null,null,null,"放棄手数料","M7003"]
[null,null,null,null,null,null,null,"その他","Z9999"]
[null,null,null,null,null,null,null,"減額、値引き、ディスカウント","M9999"]
[null,null,null,null,null,null,null,"-","X9999"]